fUST/lending_fUST_20260131
["ID","MTS","AMOUNT","RATE_DAILY","PERIOD"]
[404103053,1769847038583,-932.64,0.000337,2]
[404103055,1769847038592,-932.64,0.000337,2]
[404103058,1769847038602,-932.64,0.000337,2]
[404103060,1769847038611,-932.64,0.000337,2]
[404103062,1769847038620,-932.64,0.000337,2]
[404103063,1769847038629,-932.64,0.000337,2]
[404103066,1769847038639,-932.64,0.000337,2]
[404103067,1769847038648,-932.64,0.000337,2]
[404103070,1769847038657,-932.64,0.000337,2]
[404103072,1769847038667,-932.64,0.000337,2]
[404103073,1769847038679,-932.64,0.000337,2]
[404103075,1769847038689,-932.64,0.000337,2]
[404103077,1769847038698,-932.64,0.000337,2]
[404103079,1769847038707,-932.64,0.000337,2]
[404103081,1769847038718,-932.64,0.000337,2]
[404103083,1769847038727,-150.61336274,0.000337,2]
[404103086,1769847038739,-782.02663726,0.000337,2]
[404103088,1769847038749,-932.64,0.000337,2]
[404103089,1769847038760,-932.64,0.000337,2]
[404103091,1769847038769,-932.64,0.000337,2]
[404103093,1769847038778,-932.64,0.000337,2]
[404103095,1769847038787,-932.64,0.000337,2]
[404103097,1769847038797,-932.64,0.000337,2]
[404103099,1769847038806,-932.64,0.000337,2]
[404103101,1769847038815,-932.64,0.000337,2]
[404103103,1769847038824,-932.64,0.000337,2]
[404103105,1769847038833,-932.64,0.000337,2]
[404103107,1769847038843,-932.64,0.000337,2]
[404103109,1769847038852,-932.64,0.000337,2]
[404103111,1769847038862,-932.64,0.000337,2]
[404103113,1769847038872,-932.64,0.000337,2]
[404103115,1769847038882,-514.33,0.000337,2]
[404103117,1769847038891,-200.0,0.00033749,120]
[404103119,1769847038902,-155.0,0.00033799,2]
[404103121,1769847038911,-624.0,0.00033809,2]
[404103123,1769847038920,-211.95527135,0.00033899,30]
[404103125,1769847038931,-300.53684773,0.00033899,30]
[404103127,1769847038941,-1225.0965324,0.00033944,7]
[404103129,1769847038950,-624.0,0.00033946,2]
[404103131,1769847038960,-124.98111775,0.00034,60]
[404103133,1769847038969,-33002.0,0.00034,60]
[404103135,1769847038978,-4219.88710409,0.00034,7]
[404103137,1769847038987,-151.0,0.00034,30]
[404103139,1769847038996,-151.0,0.00034,31]
[404103141,1769847039006,-151.0,0.00034,31]
[404103143,1769847039016,-151.0,0.00034,31]
[404103145,1769847039025,-151.0,0.00034,31]
[404103148,1769847039034,-151.0,0.00034,31]
[404103150,1769847039043,-151.0,0.00034,31]
[404103152,1769847039053,-204.52887889,0.00034071,2]
[404103153,1769847039063,-624.0,0.00034083,2]
[404103155,1769847039073,-181.08010149,0.00034209,10]
[404103157,1769847039083,-187.78006525,0.00034209,10]
[404103160,1769847039092,-194.72792766,0.00034209,10]
[404103161,1769847039102,-201.93286099,0.00034209,10]
[404103164,1769847039111,-209.40437684,0.00034209,10]
[404103165,1769847039121,-217.15233878,0.00034209,10]
[404103167,1769847039131,-225.18697532,0.00034209,10]
[404103170,1769847039140,-233.51889341,0.00034209,10]
[404103171,1769847039150,-242.15909246,0.00034209,10]
[404103173,1769847039160,-251.11897888,0.00034209,10]
[404103175,1769847039169,-260.4103811,0.00034209,10]
[404103177,1769847039179,-328.64910842,0.00034209,10]
[404103179,1769847039188,-503.31334311,0.00034209,10]
[404103182,1769847039197,-624.0,0.0003422,2]
[404103184,1769847039207,-435.19046184,0.0003422,2]
[404103185,1769847039217,-783.3428313,0.0003422,2]
[404103188,1769847039226,-1392.60947787,0.0003422,2]
[404103189,1769847039236,-624.0,0.00034357,2]
[404103191,1769847039246,-600.0,0.00034373,30]
[404103193,1769847039257,-224.0,0.00034424,7]
[404103195,1769847039266,-224.0,0.00034424,7]
[404103197,1769847039275,-224.0,0.00034424,7]
[404103199,1769847039285,-224.0,0.00034424,7]
[404103201,1769847039294,-224.0,0.00034424,7]
[404103203,1769847039304,-224.0,0.00034424,7]
[404103205,1769847039314,-224.0,0.00034424,7]
[404103207,1769847039323,-224.0,0.00034424,7]
[404103209,1769847039333,-224.0,0.00034424,7]
[404103211,1769847039343,-224.0,0.00034424,7]
[404103214,1769847039355,-224.0,0.00034424,7]
[404103216,1769847039365,-224.0,0.00034424,7]
[404103218,1769847039375,-224.0,0.00034424,7]
[404103220,1769847039384,-224.0,0.00034424,7]
[404103222,1769847039393,-224.0,0.00034424,7]
[404103224,1769847039403,-224.0,0.00034424,7]
[404103226,1769847039412,-224.0,0.00034424,7]
[404103227,1769847039422,-224.0,0.00034424,7]
[404103230,1769847039431,-224.0,0.00034424,7]
[404103231,1769847039441,-224.0,0.00034424,7]
[404103234,1769847039451,-224.0,0.00034424,7]
[404103236,1769847039463,-224.0,0.00034424,7]
[404103237,1769847039472,-224.0,0.00034424,7]
[404103239,1769847039481,-224.0,0.00034424,7]
[404103242,1769847039491,-224.0,0.00034424,7]
[404103244,1769847039501,-224.0,0.00034424,7]
[404103246,1769847039511,-224.0,0.00034424,7]
[404103248,1769847039521,-224.0,0.00034424,7]
[404103249,1769847039531,-224.0,0.00034424,7]
[404103251,1769847039540,-224.0,0.00034424,7]
[404103254,1769847039551,-224.0,0.00034424,7]
[404103255,1769847039561,-224.0,0.00034424,7]
[404103257,1769847039570,-224.0,0.00034424,7]
[404103259,1769847039579,-224.0,0.00034424,7]
[404103261,1769847039588,-224.0,0.00034424,7]
[404103263,1769847039598,-224.0,0.00034424,7]
[404103265,1769847039607,-224.0,0.00034424,7]
[404103267,1769847039616,-224.0,0.00034424,7]
[404103269,1769847039626,-224.0,0.00034424,7]
[404103271,1769847039636,-224.0,0.00034424,7]
[404103273,1769847039647,-224.0,0.00034424,7]
[404103276,1769847039657,-224.0,0.00034424,7]
[404103277,1769847039667,-224.0,0.00034424,7]
[404103279,1769847039681,-224.0,0.00034424,7]
[404103281,1769847039693,-305.234228,0.00034424,7]
[404103283,1769847039704,-624.0,0.00034494,2]
[404103285,1769847039713,-835.91,0.0003452,31]
[404103287,1769847039723,-10253.68159063,0.00034531,4]
[404103290,1769847039736,-56375.98122873,0.00034531,4]
[404103292,1769847039744,-624.0,0.00034631,2]
[404103294,1769847039755,-624.0,0.00034768,2]
[404103296,1769847039764,-3103.14,0.00034847,10]
[404103298,1769847039774,-151.0,0.00034902,31]
[404103300,1769847039783,-624.0,0.00034905,2]
[404103303,1769847039792,-277.6892,0.00034935,31]
[404103305,1769847039801,-277.6892,0.00034935,31]
[404103307,1769847039810,-277.6892,0.00034935,31]
[404103310,1769847039820,-277.6892,0.00034935,31]
[404103311,1769847039829,-151.0,0.00034935,31]
[404103313,1769847039838,-151.0,0.00034935,31]
[404103315,1769847039847,-151.0,0.00034935,31]
[404103317,1769847039857,-151.0,0.00034935,31]
[404103319,1769847039866,-151.0,0.00034935,31]
[404103321,1769847039876,-9202.26,0.00034938,12]
[404103323,1769847039885,-151.339175,0.00034992,30]
[404103325,1769847039894,-347.0,0.00035021,2]
[404103327,1769847039904,-800.0,0.00035029,2]
[404103329,1769847039913,-800.0,0.00035037,2]
[404103331,1769847039924,-624.0,0.00035042,2]
[404103333,1769847039934,-200.0,0.00035058,120]
[404103335,1769847039944,-174.61919141,0.00035067,30]
[404103337,1769847039953,-2000.0,0.00035067,30]
[404103340,1769847039966,-1000.0,0.000351,60]
[404103342,1769847039976,-1000.0,0.000351,17]
[404103344,1769847039986,-162.380719,0.00035107,30]
[404103345,1769847039995,-168.3888056,0.00035107,31]
[404103347,1769847040005,-2000.0,0.00035107,30]
[404103349,1769847040014,-2000.0,0.00035107,31]
[404103351,1769847040023,-152.15001234,0.00035147,30]
[404103353,1769847040033,-267.38611932,0.00035147,30]
[404103355,1769847040043,-300.0,0.00035147,30]
[404103358,1769847040052,-2000.0,0.00035147,30]
[404103359,1769847040062,-398.4119403,0.00035147,31]
[404103361,1769847040071,-250.0,0.00035147,30]
[404103363,1769847040080,-262.28788683,0.00035147,31]
[404103365,1769847040090,-599.60298507,0.00035147,30]
[404103367,1769847040099,-151.0,0.00035147,30]
[404103369,1769847040108,-239.1051739,0.00035147,31]
[404103371,1769847040117,-151.0,0.00035147,30]
[404103373,1769847040127,-151.0,0.00035147,30]
[404103375,1769847040136,-156.587,0.00035147,31]
[404103377,1769847040147,-2000.0,0.00035147,30]
[404103379,1769847040157,-496.47127164,0.00035147,30]
[404103382,1769847040167,-2000.0,0.00035147,31]
[404103384,1769847040178,-181.08010149,0.00035147,30]
[404103386,1769847040187,-500.0,0.00035148,5]
[404103387,1769847040196,-151.0,0.00035148,31]
[404103389,1769847040205,-151.0,0.00035148,31]
[404103391,1769847040215,-151.0,0.00035148,31]
[404103393,1769847040224,-624.0,0.00035179,2]
[404103395,1769847040234,-153.83,0.000352,7]
[404103398,1769847040244,-165.75,0.000352,2]
[404103400,1769847040254,-150.32,0.000352,30]
[404103401,1769847040263,-1000.0,0.00035205,120]
[404103403,1769847040273,-722.02,0.00035216,60]
[404103405,1769847040282,-277.6892,0.00035238,31]
[404103408,1769847040292,-277.6892,0.00035238,31]
[404103410,1769847040301,-277.6892,0.00035238,31]
[404103411,1769847040310,-277.6892,0.00035238,31]
[404103413,1769847040320,-277.6892,0.00035238,31]
[404103415,1769847040329,-277.6892,0.00035238,31]
[404103417,1769847040338,-277.6892,0.00035238,31]
[404103420,1769847040347,-277.6892,0.00035238,31]
[404103422,1769847040357,-277.6892,0.00035238,31]
[404103424,1769847040367,-277.6892,0.00035238,31]
[404103425,1769847040376,-277.6892,0.00035238,31]
[404103427,1769847040385,-277.6892,0.00035238,31]
[404103429,1769847040394,-277.6892,0.00035238,31]
[404103432,1769847040404,-277.6892,0.00035238,31]
[404103433,1769847040414,-277.6892,0.00035238,31]
[404103436,1769847040423,-277.689198,0.00035238,31]
[404103437,1769847040432,-156.808456,0.00035238,31]
[404103440,1769847040442,-151.0,0.00035238,31]
[404103442,1769847040452,-151.0,0.00035238,31]
[404103444,1769847040462,-183.305288,0.00035238,31]
[404103446,1769847040471,-1217045.61846883,0.00035238,20]
[404103448,1769847040483,-10653.1402446,0.00035238,20]
[404103450,1769847040494,-26468.6346574,0.00035238,20]
[404103452,1769847040505,-15436.23488529,0.00035238,20]
[404103454,1769847040517,-7530.35789705,0.00035238,20]
[404103457,1769847040529,-440.0,0.00035238,20]
[404103459,1769847040540,-3263.64102344,0.00035238,20]
[404103749,1769847045159,-303.10001603,0.000189,2]
[404103750,1769847045170,-303.10001603,0.00019089,2]
[404103751,1769847045180,-303.10001603,0.00019278,2]
[404103753,1769847045190,-5000.0,0.00024953,2]
[404103755,1769847045199,-754.0,0.00035238,30]
[404103757,1769847045209,-3699.70537582,0.00035238,20]
[404103760,1769847046382,-763.67,0.00035228,10]
[404103762,1769847046392,-722.0,0.00035238,30]
[404103763,1769847046401,-28998.26549385,0.00035238,20]
[404103861,1769848232113,-6811.83051392,0.0002,7]
[404103862,1769848232123,-222.74427843,0.00024603,2]
[404103864,1769848232132,-5000.0,0.00030137,120]
[404103865,1769848232142,-799.0,0.00032877,30]
[404103866,1769848232151,-2068.75776269,0.00033392,2]
[404103867,1769848232160,-52.38867138,0.00033425,30]
[404103876,1769848238330,-5000.0,0.00030137,120]
[404103877,1769848238340,-746.61132862,0.00033425,30]
[404103879,1769848238353,-723.0,0.00033425,30]
[404103880,1769848238362,-766.25,0.00033698,30]
[404103882,1769848238372,-799.0,0.00033973,30]
[404103883,1769848238381,-204.52887889,0.00034144,2]
[404103885,1769848238392,-766.25,0.0003452,31]
[404103886,1769848238401,-799.0,0.00034521,30]
[404103888,1769848238410,-500.0,0.00034905,2]
[404103889,1769848238420,-185.10620481,0.00034942,2]
[404103891,1769848238432,-185.10620476,0.00034965,2]
[404103892,1769848238443,-185.10620476,0.00034988,2]
[404103894,1769848238452,-185.10620476,0.0003501,2]
[404103895,1769848238462,-185.10620476,0.00035033,2]
[404103896,1769848238472,-4964.58135892,0.00035038,2]
[404103897,1769848238485,-14641.46057963,0.00035038,2]
[404103898,1769848238497,-6221.97809751,0.00035038,2]
[404103899,1769848238508,-440.25,0.00035038,2]
[404103900,1769848238519,-57345.3092105,0.00035038,2]
[404103901,1769848238532,-7093.22178022,0.00035038,2]
[404103909,1769848240662,-663.0,0.00034144,30]
[404103910,1769848240672,-907.23052842,0.00035038,2]
[404103911,1769848240683,-1767.31023342,0.00035038,2]
[404103912,1769848240703,-5373.78270372,0.00035038,2]
[404103913,1769848240716,-790.60290983,0.00035038,2]
[404104125,1769848246486,-672.0,0.00035038,30]
[404104127,1769848246496,-10.6623395,0.00035038,2]
[404104129,1769848246514,-55010.45687543,0.00035038,2]
[404104159,1769848247723,-644.0,0.00035038,30]
[404104160,1769848247733,-3616.0,0.00035038,2]
[404104161,1769848247764,-332861.38317704,0.00035038,2]
[404104217,1769849432372,-160.0,0.00032,120]
[404104219,1769849432382,-242.7642428,0.00032274,2]
[404104221,1769849432391,-799.0,0.00032877,30]
[404104223,1769849432400,-160.0,0.00033,120]
[404104224,1769849432409,-290.23622439,0.00033425,30]
[404104227,1769849432425,-508.76377561,0.00033425,30]
[404104229,1769849432434,-799.0,0.00033973,30]
[404104231,1769849432444,-400.0,0.00033999,11]
[404104233,1769849432453,-500.0,0.00034,120]
[404104235,1769849432462,-160.0,0.00034,120]
[404104237,1769849432471,-204.52887889,0.00034144,2]
[404104239,1769849432483,-206.11290501,0.00034478,2]
[404104240,1769849432493,-1412.00221393,0.00034478,4]
[404104241,1769849432502,-799.0,0.00034521,30]
[404104242,1769849432511,-11933.1850968,0.00034568,2]
[404104243,1769849432520,-81469.45676151,0.00034578,2]
[404104244,1769849432532,-963.72371194,0.00034578,2]
[404104252,1769849438390,-5000.0,0.00030137,120]
[404104253,1769849438399,-465557.49448082,0.00034578,2]
[404104254,1769849438411,-5088.52379001,0.00034578,2]
[404104255,1769849438424,-639.50755848,0.00034578,2]
[404104256,1769849438435,-307.8364998,0.00034578,2]
[404104257,1769849438446,-757.61696366,0.00034578,2]
[404104258,1769849438458,-1162.36851335,0.00034578,2]
[404104259,1769849438470,-1205.24441864,0.00034578,2]
[404104405,1769849440549,-415.93481559,0.00034578,2]
[404104408,1769849440608,-6698.49195773,0.00034578,2]
[404104409,1769849440619,-12458.7,0.00034578,2]
[404104410,1769849440631,-40770.49135423,0.00034578,2]
[404104430,1769849444441,-13737.42914796,0.00034578,2]
[404104431,1769849444452,-14034.00110791,0.00034578,2]
[404104432,1769849444970,-5499.35299407,0.00034578,2]
[404104433,1769849444982,-663.13290589,0.00034578,2]
[404104468,1769849446454,-1058.97638194,0.00034578,2]
[404104472,1769849964168,1354.0,0.0003,120]
[404104474,1769850052869,-616.43796384,0.00013139,2]
[404104475,1769850210277,2566.83,8.992e-05,2]
[404104541,1769850632471,-4238.17941727,0.00012748,2]
[404104550,1769850632525,-761.82058273,0.00012748,2]
[404104554,1769850632535,-1024.0,0.00012877,2]
[404104558,1769850632544,-150.0,0.00012878,2]
[404104562,1769850632553,-602.0,0.00012878,2]
[404104567,1769850632562,-300.0,0.00013272,2]
[404104572,1769850632570,-460.78425077,0.00013273,2]
[404104576,1769850632579,-500.0,0.00013273,2]
[404104577,1769850632589,-4.5366808,0.00013273,2]
[404104715,1769850638565,-496.69836989,0.00013273,2]
[404104717,1769850638575,-500.0,0.00013273,2]
[404104719,1769850638584,-500.0,0.00013273,2]
[404104721,1769850638593,-500.0,0.00013273,2]
[404104722,1769850638602,-501.77892863,0.00013273,2]
[404104725,1769850638612,-500.0,0.00013273,2]
[404104727,1769850638621,-500.0,0.00013273,2]
[404104729,1769850638630,-500.0,0.00013273,2]
[404104731,1769850638639,-500.0,0.00013273,2]
[404104732,1769850638649,-500.0,0.00013273,2]
[404104733,1769850638658,-500.0,0.00013273,2]
[404104734,1769850638668,-152.66149142,0.00013273,2]
[404104736,1769850638677,-396.20944344,0.00013273,2]
[404104738,1769850638687,-645.00203551,0.00013273,2]
[404104739,1769850638697,-501.76222887,0.00013273,2]
[404104740,1769850638706,-500.0,0.00013273,2]
[404104741,1769850638716,-1194.74406307,0.00013599,2]
[404104742,1769850638724,-300.0,0.00013673,2]
[404104743,1769850638734,-150.3384121,0.00013673,2]
[404104744,1769850638743,-393.13429469,0.00013698,2]
[404104745,1769850638752,-224.97031876,0.00013698,2]
[404104746,1769850638761,-242.42644161,0.00013698,2]
[404104747,1769850638771,-507.23215922,0.00013698,2]
[404104748,1769850638780,-226.62352,0.00013699,2]
[404104749,1769850638789,-500.0,0.00013699,2]
[404104750,1769850638798,-312.2677801,0.00013699,2]
[404104751,1769850638808,-500.0,0.00013699,2]
[404104752,1769850638817,-500.83215907,0.00013699,2]
[404104753,1769850638826,-155.32289415,0.00013699,2]
[404104754,1769850638835,-500.0,0.00013699,2]
[404104755,1769850638844,-500.95299738,0.00013699,2]
[404104756,1769850638853,-503.09452861,0.00013699,2]
[404104757,1769850638862,-167.44166385,0.00013699,2]
[404104758,1769850638871,-503.30750217,0.00013699,2]
[404104759,1769850638881,-500.0,0.00013699,2]
[404104760,1769850638890,-500.65775857,0.00013699,2]
[404104761,1769850638899,-500.70234007,0.00013699,2]
[404104762,1769850638908,-500.0,0.00013699,2]
[404104763,1769850638917,-500.0,0.00013699,2]
[404104764,1769850638927,-121.4977467,0.00013699,2]
[404104765,1769850638940,-415.08803567,0.00013699,2]
[404104766,1769850638949,-500.0,0.00013699,2]
[404104767,1769850638958,-500.0,0.00013699,2]
[404104768,1769850638968,-500.0,0.00013699,2]
[404104769,1769850638977,-501.39940942,0.00013699,2]
[404104770,1769850638987,-500.0,0.00013699,2]
[404104771,1769850638996,-501.08586009,0.00013699,2]
[404104772,1769850639006,-247.47386822,0.00013699,2]
[404104773,1769850639015,-500.0,0.00013699,2]
[404104774,1769850639024,-400.2114976,0.00013699,2]
[404104775,1769850639034,-500.7604021,0.00013699,2]
[404104776,1769850639043,-500.0,0.00013699,2]
[404104777,1769850639052,-500.0,0.00013699,2]
[404104778,1769850639062,-500.0,0.00013699,2]
[404104779,1769850639071,-502.70621251,0.00013699,2]
[404104780,1769850639080,-261.05286874,0.00013699,2]
[404104781,1769850639089,-500.0,0.00013699,2]
[404104782,1769850639099,-507.29734424,0.00013699,2]
[404104783,1769850639107,-500.0,0.00013699,2]
[404104784,1769850639116,-500.0,0.00013699,2]
[404104785,1769850639125,-500.0,0.00013699,2]
[404104786,1769850639134,-501.32902716,0.00013699,2]
[404104787,1769850639143,-1000.0,0.00013821,2]
[404104788,1769850639152,-1000.0,0.00013821,2]
[404104789,1769850639161,-164.92480042,0.00013821,2]
[404104790,1769850639171,-1005.2588656,0.00013821,2]
[404104791,1769850639180,-1000.0,0.00013821,2]
[404104792,1769850639188,-507.52933695,0.00013821,2]
[404104793,1769850639197,-548.72008943,0.00013821,2]
[404104794,1769850639206,-1000.0,0.00013821,2]
[404104795,1769850639217,-1000.0,0.00013821,2]
[404104796,1769850639229,-1001.94091464,0.00013821,2]
[404104797,1769850639238,-1000.52369261,0.00013973,2]
[404104798,1769850639247,-600.0,0.00014221,2]
[404104799,1769850639256,-1000.000001,0.00014247,2]
[404104800,1769850639265,-1000.0,0.00014247,2]
[404104801,1769850639273,-194.08711327,0.00014247,2]
[404104802,1769850639282,-1003.26235573,0.00014247,2]
[404104803,1769850639291,-1001.03327419,0.00014247,2]
[404104804,1769850639300,-722.3651231,0.00014247,2]
[404104805,1769850639308,-1000.0,0.00014247,2]
[404104806,1769850639317,-208.7328461,0.00014368,2]
[404104807,1769850639326,-1500.0,0.00014368,2]
[404104808,1769850639335,-1500.0,0.00014368,2]
[404104809,1769850639344,-420.0,0.00014551,2]
[404104810,1769850639353,-1329.19001283,0.00014795,2]
[404104811,1769850639362,-239.32963744,0.00014878,2]
[404104812,1769850639370,-1194.74406307,0.00016683,2]
[404104813,1769850639379,-1194.74406307,0.00019766,2]
[404104814,1769850639388,-209.73622874,0.00020198,2]
[404104815,1769850639397,-18547.68030808,0.00020199,2]
[404104816,1769850639407,-226.62352,0.00020548,2]
[404104817,1769850639416,-1194.74406307,0.0002285,2]
[404104818,1769850639425,-1194.74406307,0.00025934,2]
[404104819,1769850639435,-167.20551429,0.00028933,21]
[404104820,1769850639444,-1194.74406307,0.00029018,2]
[404104821,1769850639453,-691.0,0.00031083,30]
[404104822,1769850639464,-1194.74406307,0.00032101,2]
[404104823,1769850639473,-545.81,0.00032777,30]
[404104824,1769850639482,-233.9,0.00032777,30]
[404104825,1769850639491,-347.85145335,0.00032808,2]
[404104826,1769850639500,-948.28,0.00032877,30]
[404104827,1769850639509,-702.4,0.00033698,30]
[404104828,1769850639518,-417.73,0.00033955,10]
[404104829,1769850639527,-348.1,0.00033955,10]
[404104830,1769850639537,-18578.11002041,0.00033965,2]
[404104831,1769850639546,-290.09,0.00034331,10]
[404104832,1769850639555,-5341.3356603,0.00034341,2]
[404104833,1769850639566,-186701.57897469,0.00034341,2]
[404104849,1769850640726,-633.0,0.00033955,30]
[404104850,1769850640736,-3519.7,0.00034341,2]
[404104883,1769850646765,-35999.64922523,0.00034341,2]
[404104911,1769851401588,2008.97537453,0.00030137,120]
[404105035,1769851837753,-4914.71567694,0.00013009,2]
[404105036,1769851837769,-85.28432306,0.00013009,2]
[404105037,1769851837780,-500.0,0.00013273,2]
[404105038,1769851837790,-500.0,0.00013273,2]
[404105039,1769851837800,-150.0,0.00013273,2]
[404105040,1769851837811,-300.0,0.00013673,2]
[404105041,1769851837821,-300.0,0.00013697,2]
[404105042,1769851837831,-1000.0,0.00013698,2]
[404105043,1769851837842,-1000.0,0.00013698,2]
[404105044,1769851837853,-249.26653858,0.00013698,2]
[404105045,1769851837863,-579.20541753,0.00013698,2]
[404105046,1769851837873,-500.0,0.00013699,2]
[404105047,1769851837884,-500.0,0.00013699,2]
[404105048,1769851837895,-177.78264906,0.00013699,2]
[404105049,1769851837907,-594.86628206,0.00013821,2]
[404105050,1769851837918,-1000.0,0.00013821,2]
[404105051,1769851837928,-693.63223956,0.00014221,2]
[404105052,1769851837939,-344.78194462,0.00014247,2]
[404105053,1769851837951,-1000.0,0.00014247,2]
[404105054,1769851837961,-865.78800948,0.00014795,2]
[404105055,1769851837970,-420.0,0.0001501,2]
[404105056,1769851837980,-175.6171727,0.00015273,2]
[404105057,1769851837991,-295.07967713,0.00016438,2]
[404105058,1769851838002,-303.10001603,0.000189,2]
[404105059,1769851838013,-151.55000803,0.00019089,2]
[404105060,1769851838024,-1357.26360761,0.0002,7]
[404105061,1769851838037,-1921.31083561,0.0002,7]
[404105062,1769851838053,-1975.1610861,0.00025,30]
[404105063,1769851838064,-160.01887955,0.00031234,10]
[404105064,1769851838075,-5032.4123844,0.00031772,2]
[404105065,1769851838086,-884.6170573,0.00031772,2]
[404105066,1769851838099,-636.0,0.0003211,30]
[404105067,1769851838109,-336.0,0.00033508,2]
[404105068,1769851838119,-336.0,0.00033578,7]
[404105069,1769851838129,-336.0,0.00033647,2]
[404105070,1769851838139,-338.0,0.00033697,120]
[404105071,1769851838148,-336.0,0.00033946,7]
[404105072,1769851838158,-1000.0,0.00034,60]
[404105073,1769851838168,-338.0,0.00034071,2]
[404105074,1769851838179,-162.72420533,0.0003414,7]
[404105075,1769851838189,-587.34404287,0.0003414,7]
[404105076,1769851838200,-307.79346763,0.0003414,7]
[404105077,1769851838212,-500.0,0.0003414,7]
[404105078,1769851838224,-500.0,0.0003414,7]
[404105079,1769851838235,-500.0,0.0003414,7]
[404105080,1769851838247,-500.0,0.0003414,7]
[404105081,1769851838258,-500.0,0.0003414,7]
[404105082,1769851838269,-500.0,0.0003414,7]
[404105083,1769851838279,-500.0,0.0003414,7]
[404105084,1769851838290,-500.0,0.0003414,7]
[404105085,1769851838300,-500.0,0.0003414,7]
[404105086,1769851838311,-500.0,0.0003414,7]
[404105087,1769851838321,-349.5785,0.0003414,7]
[404105088,1769851838333,-497.5265829,0.0003414,7]
[404105089,1769851838343,-500.0,0.0003414,7]
[404105090,1769851838354,-500.0,0.0003414,7]
[404105091,1769851838365,-336.0,0.00034158,2]
[404105092,1769851838376,-673.13,0.0003424,30]
[404105093,1769851838387,-1000.0,0.0003424,2]
[404105094,1769851838399,-1002.06258069,0.0003424,2]
[404105095,1769851838410,-336.0,0.00034263,2]
[404105096,1769851838420,-1117.76453839,0.00034264,2]
[404105097,1769851838431,-336.0,0.00034285,2]
[404105098,1769851838440,-250.0,0.0003433,10]
[404105099,1769851838451,-250.0,0.0003433,10]
[404105100,1769851838461,-250.0,0.0003433,10]
[404105101,1769851838473,-250.0,0.0003433,10]
[404105102,1769851838483,-250.0,0.0003433,10]
[404105103,1769851838494,-250.0,0.0003433,10]
[404105104,1769851838504,-250.0,0.0003433,10]
[404105105,1769851838516,-250.0,0.0003433,10]
[404105106,1769851838527,-250.0,0.0003433,10]
[404105107,1769851838537,-250.0,0.0003433,10]
[404105108,1769851838548,-250.0,0.0003433,10]
[404105109,1769851838559,-250.0,0.0003433,10]
[404105110,1769851838570,-264.40984106,0.0003433,10]
[404105111,1769851838581,-839.4,0.00034331,10]
[404105112,1769851838591,-14003.30556755,0.0003434,10]
[404105113,1769851838605,-996.69443245,0.0003434,10]
[404105114,1769851838615,-134769.66532497,0.00034341,2]
[404105115,1769851838632,-103786.10165076,0.00034341,2]
[404105140,1769851839929,-1108.92433841,0.00034341,2]
[404105143,1769851839941,-526.30212007,0.00034341,2]
[404105184,1769852959597,498.0,0.00030137,120]
[404105194,1769853031761,-397.70817402,0.00013624,2]
[404105195,1769853031814,-3569.65943777,0.00013624,2]
[404105196,1769853031824,-238.94683365,0.00013761,2]
[404105197,1769853031834,-10000.0,0.00013762,2]
[404105198,1769853031843,-1312.59,0.00013853,2]
[404105199,1769853031852,-400.0,0.00030136,2]
[404105200,1769853031862,-814.0,0.00030136,2]
[404105201,1769853031873,-609.0,0.0003211,30]
[404105202,1769853031882,-168.0,0.000324,2]